Cogmind - Beta 15 @@@ ROGUE MODE // 2025.06.18 @ 21:40:25 Player: Zaros426 Result: Destroyed by 3X-KBZ(p) with EM Pulse Gun Performance ------------- Evolutions (0) 0 Regions Visited (5) 1000 Robots Destroyed (66) 330 Value Destroyed (1610) 1610 Prototype IDs (25) 500 Alien Tech Used (0) 0 Bonus (2453) 2453 TOTAL SCORE: 5893 Bonus ------- Follower Combat Kills 174 Delivered SUBCON Basin 2000 Registered with UFD 300 Friendly Fire -21 Cogmind --------- Core Integrity 0/250 Matter 238/300 Energy 198/200 System Corruption 2% Temperature Cool (0) Movement Treading (960) Ox10 Location -9/Scraptown Parts ------- > --- POWER (1) -------- Subdweller Power Source > --- PROPULSION (2) --- Light Treads > --- UTILITY (2) ------ Humpback > --- WEAPON (2) ------- Mini Grenade Launcher Datajack > --- INVENTORY (35) --- Improved Terrain Scan Processor Hardlight Generator System Shield Overtuned Pulse Rifle Light EM Pulse Cannon Improved EM Pulse Cannon Subdweller Machine Gun Remote Datajack Multitool Shock Trap Peak State ------------ > --- POWER ------------ Subdweller Power Source > --- PROPULSION ------- Subdweller Monowheel Subdweller Monowheel > --- UTILITY ---------- Humpback > --- WEAPON ----------- Subdweller Machine Gun Subdweller Machine Gun > --- INVENTORY -------- Subdweller Power Source Subdweller Monowheel High-capacity Storage Unit Huge Storage Unit Structural Scanner Subdweller Optics Seismic Detector Scrap Shield Subdweller Laser Subdweller Machine Gun Subdweller Machine Gun Subdweller Machine Gun Subdweller Shrapnel Launcher Multitool Shock Trap Shock Trap Shock Trap Shock Trap SUBCON Basin [Rating: 33] Favorites ----------- Power Subdweller Power Source Engine Subdweller Power Source Propulsion Light Treads Treads Light Treads Wheel Subdweller Monowheel Utility Light Armor Plating Device Seismic Detector Storage Huge Storage Unit Processor Targeting Computer Protection Light Armor Plating Weapon Subdweller Machine Gun Energy Gun EM Pulse Gun Energy Cannon Beam Cannon Ballistic Gun Subdweller Machine Gun Ballistic Cannon Light Cannon Launcher Subdweller Shrapnel Launcher Special Weapon Mining Laser Piercing Weapon Makeshift Spear Special Melee Weapon Datajack Build | -11 -10 -10 -10 -9 -9 ------- Run | Yrd Mat Min Sub Rec Scr Slots Evolved . | . . . . . . Power . | . . . . . . Propulsion . | . . . . . . Utility . | . . . . . . Weapon . | . . . . . . Parts Attached 44 | 5 7 9 17 3 3 Power 4 | . 2 . 2 . . Engine 4 | . 2 . 2 . . Core . | . . . . . . Reactor . | . . . . . . Propulsion 13 | 2 . 2 7 2 . Treads 5 | 2 . 2 . 1 . Leg . | . . . . . . Wheel 8 | . . . 7 1 . Hover . | . . . . . . Flight . | . . . . . . Utility 12 | 1 3 3 3 1 1 Device 2 | 1 . . . . 1 Storage 4 | . 2 1 1 . . Processor 1 | . . 1 . . . Hackware . | . . . . . . Protection 5 | . 1 1 2 1 . Artifact . | . . . . . . Weapon 15 | 2 2 4 5 . 2 Energy Gun 1 | . 1 . . . . Energy Cannon 1 | . . 1 . . . Ballistic Gun 6 | 2 . . 4 . . Ballistic Cannon 1 | . . 1 . . . Launcher 3 | . . 1 1 . 1 Special Weapon 1 | . 1 . . . . Impact Weapon . | . . . . . . Slashing Weapon . | . . . . . . Piercing Weapon 1 | . . 1 . . . Special Melee Weapon 1 | . . . . . 1 Unidentified Prototypes . | . . . . . . Parts Lost 12 | . . 3 5 2 2 Power 1 | . . . 1 . . Propulsion 6 | . . 1 3 1 1 Utility 1 | . . 1 . . . Weapon 4 | . . 1 1 1 1 Highest Loss Streak 2 | . . 2 2 1 2 To Critical Strikes 2 | . . . 2 . . Average Backups 11 | 2 10 14 6 12 15 Power . | . . . . . 1 Propulsion . | . . 1 . . . Utility 5 | . 4 5 3 5 7 Weapon 3 | 1 4 6 1 4 4 Tool/Special . | . . . . . . Unused Backups 25 | . 1 . 2 1 21 Power 2 | . . . . . 2 Propulsion . | . . . . . . Utility 10 | . 1 . . . 9 Weapon 11 | . . . 2 1 8 Tool/Special 2 | . . . . . 2 Average Slot Usage (%) 92 | . 96 98 84 91 95 Engine 13 | . 12 14 13 14 14 Treads 12 | . 27 27 1 6 14 Wheel 14 | . . . 25 21 14 Device 1 | . 6 . . . 1 Storage 9 | . 12 14 3 14 12 Protection 10 | . 7 13 10 6 10 Energy Gun 1 | . 10 2 . . . Energy Cannon 2 | . . 9 1 . . Ballistic Gun 18 | . 14 3 22 24 20 Ballistic Cannon 1 | . . 10 . . . Launcher 1 | . . . 2 3 . Special Melee Weapon 2 | . . . . . 7 Peak Build Rating 33 | 5 8 12 33 32 19 Average Rating 13 | 2 7 8 16 17 13 On Entrance 11 | . 4 8 8 32 14 Naked Turns . | . . . . . . Heaviest Build 213 | 4 32 94 213 213 210 Greatest Support 40 | 3 40 40 40 40 20 Greatest Overweight (x) 13 | 1 . 2 10 10 13 Average Overweight (x) 2 | . . 1 2 4 4 Largest Inventory Capacity 35 | 5 20 25 35 35 35 Average Capacity 18 | 5 14 23 11 24 23 Most Carried 35 | 5 15 20 35 35 25 Average Carried 14 | 2 10 17 9 17 20 Final Capacity 35 | 5 15 20 35 25 35 Final Carried 35 | 5 14 16 35 25 10 Class Distribution -------------------- 33% | Scavenger-Mutant 29% | Mutant 24% | Subdweller-Mutant 12% | Hauler-Mutant Dominant Class ---------------- Mutant | -10/Materials Mutant | -10/Mines Subdweller-Mutant | -10/Subcaves Scavenger-Mutant | -9/Recycling Scavenger-Mutant | -9/Scraptown Resources | -11 -10 -10 -10 -9 -9 ----------- Run | Yrd Mat Min Sub Rec Scr Matter Collected 2517 | 233 300 181 826 197 780 Remotely . | . . . . . . Salvage Created 2541 | 14 562 259 845 861 . Parts 144 | 4 34 10 63 33 . Haulers Intercepted 1 | . 1 . . . . Recyclers Shooed 4 | . 1 1 . 2 . Parts Field Recycled . | . . . . . . Retrieved Matter . | . . . . . . Parts Self-Destructed 26 | . . . 26 . . Prevented . | . . . . . . Kills | -11 -10 -10 -10 -9 -9 ------- Run | Yrd Mat Min Sub Rec Scr Combat Hostiles Destroyed 48 | . 15 5 25 3 . Guns 32 | . 14 . 16 2 . Cannons 8 | . . 2 6 . . AOE 7 | . 1 3 2 1 . Classes Destroyed 9 | 1 4 2 2 . . Worker 1 | . . 1 . . . Tunneler 3 | 1 . 2 . . . Hauler 1 | . 1 . . . . Recycler 11 | . . 2 . 9 . Watcher 2 | . 2 . . . . Swarmer 15 | . 6 3 6 . . Grunt 14 | . 9 2 3 . . Sentry 4 | . . . 1 3 . Subdweller 15 | . . . 15 . . Best Kill Streak 7 | 1 3 3 3 7 . Combat Bots Only 3 | . 3 3 3 1 . Max Kills in Single Turn 3 | 1 2 3 1 2 . Gunslinging 1 | . 1 . . . . Exploded 3 | . 1 3 1 1 . Melee . | . . . . . . Uniques/NPCs Destroyed . | . . . . . . Combat | -11 -10 -10 -10 -9 -9 -------- Run | Yrd Mat Min Sub Rec Scr Hostile Shots Fired 230 | . 58 27 117 8 20 Missed 71 | . 21 8 36 2 4 Hits 159 | . 37 19 81 6 16 Projectile 159 | . 37 19 81 6 16 AOE 1 | . . . 1 . . Critical Strikes 4 | . . . 3 . 1 Damage Taken 2610 | . 467 243 1582 128 190 Core 259 | . 57 . 135 15 52 Absorbed by Shields . | . . . . . . Core Remaining (%) 100 | 100 . . . . . Volleys Fired 200 | 1 53 19 104 22 1 Largest 2 | 2 2 2 2 2 1 Hottest 100 | 40 100 90 90 60 30 Shots Fired 386 | 2 105 36 206 36 1 Gun 310 | 2 104 3 172 28 1 Cannon 60 | . . 31 29 . . Launcher 15 | . . 2 5 8 . Special 1 | . 1 . . . . Kinetic 295 | 2 52 20 192 28 1 Thermal 29 | . 1 14 14 . . Explosive 10 | . . 2 . 8 . Electromagnetic 52 | . 52 . . . . Robot Hit Streak 20 | 1 7 4 20 5 . Robot Miss Streak 6 | . 4 3 6 1 . Penetration Max . | . . . . . . Secondary Targets 4 | . 3 . 1 . . Max Gunslinging Chain 1 | . 1 . 1 . . Shots Hit Robots 223 | 1 63 19 121 18 1 Core Hits 97 | 1 27 11 41 16 1 Critical Kills 4 | . . . 1 3 . Critical Parts Destroyed . | . . . . . . Critical Strikes 6 | . 1 . 2 3 . Meltdown 1 | . . . 1 . . Destroy 4 | . . . 1 3 . Corrupt 1 | . 1 . . . . Melee Attacks 2 | . . 1 . . 1 Impact . | . . . . . . Slashing . | . . . . . . Piercing 1 | . . 1 . . . Sneak Attacks 1 | . . . . . 1 Combat Hostiles . | . . . . . . Follow-up Attacks . | . . . . . . Damage Inflicted 4616 | 13 1033 510 2581 458 21 Guns 3206 | 13 865 13 1925 369 21 Cannons 671 | . . 330 341 . . Explosions 739 | . 168 167 315 89 . Melee . | . . . . . . Ramming . | . . . . . . Kinetic 3416 | 13 423 185 2405 369 21 Thermal 502 | . 168 158 176 . . Explosive 256 | . . 167 . 89 . Electromagnetic 442 | . 442 . . . . Impact . | . . . . . . Slashing . | . . . . . . Piercing . | . . . . . . Highest Corruption 2 | . . . . 2 2 Average Corruption 1 | . . . . 1 1 Corruption Purged . | . . . . . . Corruption Blocked . | . . . . . . Effects 1 | . . . . 1 . Message Errors 1 | . . . . 1 . Overload Shots . | . . . . . . Overflow Damage 28 | . 18 7 . 3 . Projectiles 7 | . . 7 . . . Explosions 21 | . 18 . . 3 . Melee . | . . . . . . Knockbacks 1 | . . . 1 . . Impact . | . . . . . . Kinetic 1 | . . . 1 . . Secondary . | . . . . . . Self-Inflicted Damage 160 | . 52 42 29 37 . Shots 6 | . 2 2 1 1 . Rammed . | . . . . . . Targets Rammed . | . . . . . . Kicked . | . . . . . . Crushed . | . . . . . . Highest Temperature 304 | . 213 304 . 4 12 Average Temperature 79 | . 62 114 . 4 12 Received Heat Transfer 646 | . 207 72 255 27 85 Effects 1 | . 1 . . . . Energy Bleed 1 | . 1 . . . . Siege Activations . | . . . . . . Martial Activations . | . . . . . . Shielding Activations . | . . . . . . Robots Disrupted . | . . . . . . Combat Hostiles . | . . . . . . Robots Corrupted . | . . . . . . Combat Hostiles . | . . . . . . Parts Fried . | . . . . . . Impact Corruptions . | . . . . . . Robots Melted 1 | . . . 1 . . Combat Hostiles 1 | . . . 1 . . Parts Melted 1 | . . . 1 . . Heat Transferred 953 | . 250 333 370 . . Parts Sabotaged . | . . . . . . Parts Stolen . | . . . . . . Parts Stripped . | . . . . . . Power Chain Reactions 4 | . 4 . . . . Alert | -11 -10 -10 -10 -9 -9 ------- Run | Yrd Mat Min Sub Rec Scr Maximum Alert Level . | . . . . . . Low Security (%) 100 | 100 100 100 . 100 . Level 1 . | . . . . . . Level 2 . | . . . . . . Level 3 . | . . . . . . Level 4 . | . . . . . . Level 5 . | . . . . . . High Security . | . . . . . . Max Security . | . . . . . . Peak Influence 183 | 5 183 87 . 105 . Initial 31 | . . 31 . . . Average 40 | . 92 8 . 41 . Influence Increases 1281 | 5 490 169 220 397 . Destroy 0b10 Robot/C 660 | . 300 100 200 60 . Destroy 0b10 Robot/NC 90 | 5 15 25 . 45 . Destroy Leader 106 | . 66 20 20 . . Successful Hack 64 | . 17 . . 47 . Select Force Hacks 240 | . 60 . . 180 . Disable Machine 45 | . 15 15 . 15 . Destroy Structure 76 | . 17 9 . 50 . Influence Decreases 1281 | 5 409 219 251 383 14 Entered New Map 81 | . . 50 17 . 14 Time Decay 1172 | 5 409 169 224 365 . Lost Part 28 | . . . 10 18 . Squads Dispatched 3 | . 3 . . . . Investigation 2 | . 2 . . . . Extermination . | . . . . . . Reinforcement 1 | . 1 . . . . Assault . | . . . . . . Garrison . | . . . . . . Intercept . | . . . . . . Searches Triggered . | . . . . . . Construction Impeded . | . . . . . . Haulers Reinforced . | . . . . . . Active Scanning Responses . | . . . . . . Cargo Convoy Interrupts . | . . . . . . Stealth | -11 -10 -10 -10 -9 -9 --------- Run | Yrd Mat Min Sub Rec Scr Distress Signals . | . . . . . . Communications Jammed . | . . . . . . Distress Signals . | . . . . . . Times Spotted 68 | . 19 7 27 3 12 Peak Tracking Total 13 | . 4 3 4 1 13 Tactical Retreats . | . . . . . . Traps | -11 -10 -10 -10 -9 -9 ------- Run | Yrd Mat Min Sub Rec Scr Traps Triggered 5 | . 1 . 4 . . Indirectly . | . . . . . . Trap Hack Attempts . | . . . . . . Triggered . | . . . . . . Disarmed . | . . . . . . Reprogrammed . | . . . . . . Reused . | . . . . . . Traps Extracted . | . . . . . . Installed . | . . . . . . Triggered . | . . . . . . Most Traps Carried 4 | . . 4 4 4 4 Machines | -11 -10 -10 -10 -9 -9 ---------- Run | Yrd Mat Min Sub Rec Scr Machines Disabled 7 | . 1 1 . 1 4 Max in Single Turn 1 | . 1 1 . 1 . Machines Repaired . | . . . . . . Machines Dismantled . | . . . . . . Machines Sabotaged . | . . . . . . Overloaded Fab Kills . | . . . . . . Hacking | -11 -10 -10 -10 -9 -9 --------- Run | Yrd Mat Min Sub Rec Scr Machines Accessed 31 | . 9 . 4 14 4 Terminals 13 | . 7 . . 6 . Fabricators . | . . . . . . Repair Stations . | . . . . . . Recycling Units 8 | . 2 . . 6 . Scanalyzers . | . . . . . . Garrison Access . | . . . . . . Total Hacks 115 | . 27 . 16 55 17 Successful 86 | . 14 . 16 39 17 Failed 27 | . 12 . . 15 . Catastrophic 7 | . 3 . . 4 . Database Lockouts 2 | . 1 . . 1 . Manual 40 | . 17 . . 23 . Terminals 49 | . 25 . . 24 . Fabricators . | . . . . . . Repair Stations . | . . . . . . Recycling Units 9 | . 2 . . 7 . Scanalyzers . | . . . . . . Garrison Access . | . . . . . . Terminal Hacks 68 | . 5 . 16 30 17 Record 53 | . . . 13 24 16 Part Schematic 1 | . . . . 1 . Robot Schematic 1 | . . . . 1 . Robot Analysis 3 | . 1 . . 2 . Prototype ID Bank 4 | . 3 . . 1 . Open Door 1 | . . . 1 . . Terminal Index 1 | . . . . 1 . Locate Traps 1 | . 1 . . . . Proto ID Catalog 2 | . . . 1 . 1 Release Object 1 | . . . 1 . . Fabricator Hacks . | . . . . . . Repair Station Hacks . | . . . . . . Recycling Unit Hacks . | . . . . . . Scanalyzer . | . . . . . . Garrison Access Hacks . | . . . . . . Unauthorized Hacks 18 | . 9 . . 9 . Terminals 10 | . 7 . . 3 . Botnet 2 | . 1 . . 1 . Skim 8 | . 6 . . 2 . Fabricators . | . . . . . . Repair Stations . | . . . . . . Recycling Units 8 | . 2 . . 6 . Tunnel 8 | . 2 . . 6 . Scanalyzers . | . . . . . . Garrison Access . | . . . . . . Data Cores Recovered . | . . . . . . Used . | . . . . . . Hacking Detections 12 | . 6 . . 6 . Full Trace Events 6 | . 1 . . 5 . Feedback Events 2 | . . . . 2 . Corruption 2 | . . . . 2 . Feedback Blocked . | . . . . . . Robot Schematics Acquired 1 | . . . . 1 . Robots Built . | . . . . . . Authchips . | . . . . . . Time . | . . . . . . Total Robot Build Rating . | . . . . . . Part Schematics Acquired 1 | . . . . 1 . Parts Built . | . . . . . . Authchips . | . . . . . . Time . | . . . . . . Total Part Build Rating . | . . . . . . Parts Repaired . | . . . . . . Time . | . . . . . . Parts Recycled . | . . . . . . Recycled Matter . | . . . . . . Retrieved Matter . | . . . . . . Retrieved Components . | . . . . . . Parts Scanalyzed . | . . . . . . Part Schematics Acquired . | . . . . . . Parts Damaged . | . . . . . . Bothacking | -11 -10 -10 -10 -9 -9 ------------ Run | Yrd Mat Min Sub Rec Scr Used RIF Installer . | . . . . . . Robots Hacked 1 | . . . . . 1 Non-combat . | . . . . . . Combat 1 | . . . . . 1 Robot Hacks Applied 1 | . . . . . 1 parse_system 1 | . . . . . 1 Relay Couplers Released . | . . . . . . Fabnet Peak Effective % . | . . . . . . Robots Rewired . | . . . . . . Allies Hacked . | . . . . . . Hacks Repelled . | . . . . . . Allies | -11 -10 -10 -10 -9 -9 -------- Run | Yrd Mat Min Sub Rec Scr Total Allies 5 | . . . . . 5 Largest Group 5 | . . . . . 5 Highest-Rated Group 238 | . . . . . 238 Highest-Rated Ally 50 | . . . . . 50 Total Orders . | . . . . . . Ally Attacks 23 | . . . . . 23 Total Damage 419 | . . . . . 419 Kills 5 | . . . . . 5 Allies Corrupted . | . . . . . . Allies Melted . | . . . . . . Intel | -11 -10 -10 -10 -9 -9 ------- Run | Yrd Mat Min Sub Rec Scr Active Infowar (turns) 534 | 7 527 . . . . Seismic 534 | 7 527 . . . . Robot Analysis Total 3 | . 1 . . 2 . Derelict Logs Recovered 8 | . . 2 1 . 5 Drone Launches . | . . . . . . Drone Recoveries . | . . . . . . Exploration | -11 -10 -10 -10 -9 -9 ------------- Run | Yrd Mat Min Sub Rec Scr Turns Passed 11734 | 51 1241 2020 3869 1216 3337 Spaces Moved 6701 | 63 731 669 2580 703 1955 Core 192 | 63 126 . 3 . . Treads 1277 | . 605 669 2 . 1 Legs . | . . . . . . Wheels 5232 | . . . 2575 703 1954 Hover . | . . . . . . Flight . | . . . . . . Fastest Speed 50 | 50 50 160 100 117 100 Average Speed 161 | 53 141 287 131 156 168 Slowest Speed 960 | 100 160 320 450 210 960 Overloaded Moves . | . . . . . . Propulsion Burnouts . | . . . . . . Robots Hopped . | . . . . . . Potential Cave-ins . | . . . . . . Cave-ins Triggered . | . . . . . . Exploration Rate (%) 80 | 2 99 100 93 99 92 Regions Visited 5 Branch Regions 4 Pre-discovered Areas 10 | . 3 . 1 6 . Known Exits Taken 1 | . . 1 . . . Unknown Exits Taken 4 | 1 1 . 1 1 . Scrap Searched 21 | . . 2 8 . 11 Spaces Dug 16 | . 1 . . 15 . Terrain Destroyed 166 | . 17 9 81 59 . Melee . | . . . . . . Projectile 8 | . 1 . 6 1 . AOE 158 | . 16 9 75 58 . Terrain Rammed . | . . . . . . Walls Destroyed . | . . . . . . Machines Disabled . | . . . . . . Actions | -11 -10 -10 -10 -9 -9 --------- Run | Yrd Mat Min Sub Rec Scr Total 7247 | 77 830 724 2837 782 1997 Wait 135 | 1 18 16 54 23 23 Move 6696 | 62 730 668 2579 702 1955 Hop . | . . . . . . Pick Up 83 | 7 13 7 24 23 9 Fast Attach 24 | 2 4 . 16 1 1 Attach 15 | 3 2 4 1 3 2 Detach 1 | 1 . . . . . Swap 27 | . 7 7 8 4 1 Drop 37 | . 3 2 25 4 3 Fire 200 | 1 53 19 104 22 1 Melee 2 | . . 1 . . 1 Ram . | . . . . . . Kick . | . . . . . . Crush . | . . . . . . Escape Stasis . | . . . . . . Rewire 1 | . . . . . 1 Trap . | . . . . . . Miscellaneous 26 | . . . 26 . . Route ------- -11/Scrapyard -10/Materials (discovered 5 exits: *Mat x3 / [*Min] / *Sub) -10/Mines (discovered 4 exits: *Mat x2 / [*Exi] / *Sub) -10/Subcaves (discovered 3 exits: [*Mat x2] / *Rec) -9/Recycling (discovered 2 exits: [*Fac] / *Scr) -9/Scraptown (discovered 1 exit: [*Fac]) History --------- Turn | Location | Event 3 | -11/Scrapyard | Discovered new exit (range 15) 52 | -11/Scrapyard | Entered Materials 263 | -10/Materials | Discovered new exit (range 14) 289 | -10/Materials | Discovered new exit (range 15) 311 | -10/Materials | Build established: Mutant 541 | -10/Materials | Discovered new exit (range 16) 834 | -10/Materials | Central database locked down 843 | -10/Materials | Discovered new exit (range 12) 936 | -10/Materials | Identified exit to Materials 970 | -10/Materials | Learned location of 2 exits from Materials 994 | -10/Materials | Learned Storage emergency access door positions 1022 | -10/Materials | Learned Materials stockpile data 1293 | -10/Materials | Entered Mines 1306 | -10/Mines | Identified exit to Subcaves 1353 | -10/Mines | Learned 2 Materials zone layouts 1443 | -10/Mines | Found a Scrap Suit stashed away for nefarious purposes 1509 | -10/Mines | Found a hidden stash of uninstalled traps 1621 | -10/Mines | Discovered exit to Materials (range 15) 1651 | -10/Mines | A weapon hastily lodged in a ceiling crevice suddenly fell to the ground 1923 | -10/Mines | Deemed a non-threat by the Exiles lab entrance 1923 | -10/Mines | Discovered new exit (range 5) 2268 | -10/Mines | Discovered exit to Materials (range 8) 3313 | -10/Mines | Entered Subcaves 3314 | -10/Subcaves | Approached by a straggling Scientist 3380 | -10/Subcaves | Learned 4 Materials zone layouts 3507 | -10/Subcaves | A swath of the cavern ceiling suddenly collapsed 3567 | -10/Subcaves | Visited 4L-MR0's lab 3714 | -10/Subcaves | Core integrity fell below 50% 3799 | -10/Subcaves | Build established: Subdweller-Mutant 3801 | -10/Subcaves | Disturbed a concealed Subdweller 4197 | -10/Subcaves | Shifting Twisted Machinery released Humpback 4212 | -10/Subcaves | Shifting Twisted Machinery released Sub. Machine Gun 4401 | -10/Subcaves | Learned location of Zion (-7) 4401 | -10/Subcaves | Met a Zionite searching for "candidates" 4646 | -10/Subcaves | Discovered new exit (range 13) 4813 | -10/Subcaves | Shifting Twisted Machinery released Sub. Machine Gun 4816 | -10/Subcaves | Shifting Twisted Machinery released Sub. Shrapnel Launcher 4981 | -10/Subcaves | A swath of the cavern ceiling suddenly collapsed 4993 | -10/Subcaves | Visited Clippyterm 4997 | -10/Subcaves | Learned Factory fabricator intel 4997 | -10/Subcaves | Learned Research machine intel 5307 | -10/Subcaves | Discovered new exit (range 13) 5843 | -10/Subcaves | Ambushed by Subdweller buried in earth 5843 | -10/Subcaves | Ambushed by Subdweller buried in earth 5854 | -10/Subcaves | Ambushed by Subdweller buried in earth 5940 | -10/Subcaves | Shifting Twisted Machinery released Mak. Light Armor Plating 6126 | -10/Subcaves | Discovered new exit (range 11) 6686 | -10/Subcaves | Found SUBCON Basin 6701 | -10/Subcaves | Build established: Hauler-Mutant 7182 | -10/Subcaves | Entered Recycling 7449 | -9/Recycling | Scanned before Scraplab entrance 7481 | -9/Recycling | Entered Scraplab 7575 | -9/Recycling | Core integrity fell below 20% 7821 | -9/Recycling | Build established: Scavenger-Mutant 8038 | -9/Recycling | Discovered new exit (range 13) 8394 | -9/Recycling | Discovered new exit (range 2) 8398 | -9/Recycling | Entered Scraptown 8398 | -9/Scraptown | System corruption cleaned by C-Scrubber 8745 | -9/Scraptown | Visited Spacefarers 8831 | -9/Scraptown | Visited Symbiants 8999 | -9/Scraptown | Visited Bundlers 9102 | -9/Scraptown | Visited Assassins FH 9136 | -9/Scraptown | Visited TADAMA 9218 | -9/Scraptown | Visited Awakened 9249 | -9/Scraptown | Visited The Evicted 9332 | -9/Scraptown | Scanned Subdweller tech in exchange for log data 9335 | -9/Scraptown | Learned Factory security intel 9337 | -9/Scraptown | Learned Research terminal intel 9339 | -9/Scraptown | Learned Research emergency access door positions 9340 | -9/Scraptown | Learned location of 2 exits from Lower Caves 9342 | -9/Scraptown | Learned Factory garrison access intel 9361 | -9/Scraptown | Discovered new exit (range 11) 10066 | -9/Scraptown | Visited UFD Registry 10066 | -9/Scraptown | Registered with UFD as "Thermoblaster" 10127 | -9/Scraptown | Visited Science Guys 10189 | -9/Scraptown | Visited Scrapoid Research Area 10298 | -9/Scraptown | Visited DA-N13 Charitable Foundation 10307 | -9/Scraptown | Found DCF Scrap (29 items) 10351 | -9/Scraptown | Visited Abandonware Association 10370 | -9/Scraptown | Learned abandonware demo "REPAIR.EXE" 10407 | -9/Scraptown | Visited Scrapoid Pod Storage 10435 | -9/Scraptown | Visited Junk Repository 10470 | -9/Scraptown | Visited Curators Association 10524 | -9/Scraptown | Visited Scrap Suit Storage 10559 | -9/Scraptown | Visited Derelict Rescue Squad 10669 | -9/Scraptown | Delivered Scrap Shield to a Scientist 10934 | -9/Scraptown | Found Scrapoid Pod 11274 | -9/Scraptown | Scrapoid Pod released 09S06-D (x5) 11595 | -9/Scraptown | Attacked by Scraptown defenders 11699 | -9/Scraptown | Build established: Hauler-Mutant 11735 | -9/Scraptown | Destroyed by 3X-KBZ(p) with EM Pulse Gun Last Messages --------------- 11603_ Acquired System Shield. 11605_ 09S04-D cannibalizes Terrain Scanner to repair Mak. Microdissipator Network. 11607_ Acquired Imp. Terrain Scan Processor. 11614_ Acquired Hardlight Generator. 11627_ Acquired 70 matter. 11636_ Acquired Ovr. Pulse Rifle. 11694_ ANNOUNCEMENT: Triborg tracking relay activated. Stay clear or you only have yourself to blame! 11716_ 09S04-D suffers critical hit (Burn). 11720_ 09S06-D destroyed. 11721_ 09S04-D destroyed. 11724_ 09S03-D destroyed. 11726_ 9A-FIC(j) destroyed. 11727_ Critical hit (Burn: +50). 11728_ Acquired 80 matter. 11729_ Sub. Machine Gun destroyed. 11731_ Com. Wheel destroyed. 11733_ 3X-KBZ(p): "Batten down the hatches, man the cannons, all bots on deck!" 11733_ HY-VWF(j) destroyed. 11734_ 09S05-D heat damages Mak. Salvage Targeting Computer. 11734_ Penetrated by Bolt. Map ----- +----------------------------------------------------+ | "" "#????######?????#"" #?#"""""""""#"""""??"" | | "" "#???#"""""""#???##### #?#" "#" ? " | | "" "#???#"" ""#???????# #?#" """ " | | "#???#"" ""#???????# #?#" "#" "" " | | """###?#""" ""#???????# #?#" """ "#" " " | | #?#"" ""#??????## ###" "#" " | | ###""" """######## ##"""""" ""#"" """""" | | | | | | | | ###### ########### ##########"" """"#### | | ###### ######????## ##????????#" "#??? | | #""""" """""#####?# #########?#" [=""#??? | | #" " " #?# """"""""#?#" """#??? | | """ ""#" " " "### ### " ""#?#" """#??? | | """ "#" " " "#"" """ "#?#"""""""#??? | | """ "#""""" """""#" """ " ""#?#########??? | | "" "###### ######" " """"""""#????????????? | | " "#""""" """""#" ##"""####???????#?#### | | ?"" ""#" " " "#" "" " ##############"""""""" | | ??# ###" " " "#" " #??#"""""""""#""""" "" | | ??# " " "#""""""=!!#??#" "#"""""" | | ??#####""""" """""#######=%!#??#" "#"" "" | | #?????###### ######?????#[*%#??#" """ "#" " | | ############%############ !!#??#" """ "#" | | =!!*= =@! #??#" """ "#"" | | !=%! s *%[ #??#" "#"" | | #########################! ;#?#" "#"" " | | #??????????????????????# ; ##" "#"" | | ############??###########p #;;####### ##### ##### | | """"""## ###""""" # x h | | ! "## " " # " " # hTT | | / "## "" " # # TT | | ] "## " " # """ j | | "## "" # """ # Eg | | / "## " " # """ # j################# | | [ "## " " ## """ # #???????????????# | | = "## " ## """ # #???????????????# | | "## " " ## # #???????????????# | | """[""## " " # #???????????????# | | ###!#### ""##""""" # #???????????????# | | ###%################### #???###########?# | | """*""#???????????????# #???# #?# | | !="#?????########### #???# #?# | | "" "#?????#"""""""" # #???# """"" #?# | | "" "#?????#""""""" # #???# """"" #?# | | "#?????#"" # #???# """" #?# | | ""#?????#"" #???# #?# | | """""#?????#""" # #???# #?# | | """"""#?????#"" # #???# #?# | +----------------------------------------------------+ Best States ------------- Heat Dissipation 25 Energy Generation 15 Energy Capacity 250 Matter Stores 300 Matter Capacity 300 Sight Range 16 Terrain Scan Density 10 Armor Coverage 800 Evasion (%) 50 Targeting Accuracy 5 Recoil Reduction 2 Item Schematics ----------------- Huge Storage Unit | -9/Recycling | Hacked Robot Schematics ------------------ L-31 Rogue | -9/Recycling | Hacked Fabricated ------------ Nothing Repaired ---------- Nothing Alien Tech Used ----------------- None Achievements -------------- None Challenges ------------ None Game ------ Seed SurgeSubdwellerBlasthammer Manual? 0 Play Time 00:51:09 Cumulative 305.0 hours Start 2025.06.18 @ 20:49:37 End 2025.06.18 @ 21:40:25 Sessions 1 Manual Loads 0 Difficulty Rogue Special Mode None Game No. 155 Rogue 155 Adventurer 0 Explorer 0 Win Type - Total 1 Types 0/0/0/0/1/0/0/0/0/0 Lore% 78 Gallery% 76 Achievement% 65 Wizard Run 0 Options --------- Layout 0 ASCII 0 Keyboard 0 Movement Mouse Keybinds 0 Fullscreen 1 Font 24/Smallcaps Map View 183x50 Zoom Use 0% Tactical HUD 1 Map Filters NONE Filters NONE Steam 0 RUN: ec07bf2e-a50d-4d68-9551-8278f975241b